Cogmind - Beta 16.1 @@@ ROGUE MODE // 2026.02.24 @ 21:37:57 Player: j_ Result: Destroyed by X-57 Shotgunner with Shotgun Performance ------------- Evolutions (3) 1500 Regions Visited (6) 1200 Robots Destroyed (82) 410 Value Destroyed (2089) 2089 Prototype IDs (3) 60 Alien Tech Used (0) 0 Bonus (0) 0 TOTAL SCORE: 5259 Bonus ------- None Cogmind --------- Core Integrity 0/700 Matter 124/300 Energy 68/100 System Corruption 4% Temperature Cool (0) Movement Core (1450) Ox28 Location -7/Factory Parts ------- > --- POWER (2) -------- (None) > --- PROPULSION (3) --- (None) > --- UTILITY (5) ------ Huge Storage Unit > --- WEAPON (3) ------- Improved Assault Rifle Improved Assault Rifle > --- INVENTORY (25) --- Light Nuclear Core Light Angular Momentum Engine Light Treads Armored Treads Aluminum Leg Improved Heat Sink Improved Heat Sink Cooling System Small Storage Unit Improved Terrain Scanner Targeting Computer Transmission Jammer Improved Light Armor Plating Shock Rifle Autogun Peak State ------------ > --- POWER ------------ Light Nuclear Core Light Nuclear Core > --- PROPULSION ------- Light Treads Light Treads Armored Treads > --- UTILITY ---------- Huge Storage Unit Improved Targeting Computer Advanced Targeting Computer Hardened Medium Armor Plating Improved Medium Armor Plating > --- WEAPON ----------- Improved Assault Rifle Improved Assault Rifle Improved Assault Rifle > --- INVENTORY -------- Nuclear Core Light Nuclear Core Micro Nuclear Core Light Angular Momentum Engine Light Treads Aluminum Leg Aluminum Leg Aluminum Leg Improved Aluminum Leg Improved Aluminum Leg Armored Wheel Improved Heat Sink Cooling System Small Storage Unit Improved Terrain Scanner Targeting Computer Transmission Jammer Medium Armor Plating Hardened Medium Armor Plating Insulated Plating Improved Assault Rifle Improved Assault Rifle High-powered Shotgun Rocket Launcher Rocket Launcher [Rating: 39] Favorites ----------- Power Light Nuclear Core Engine Light Ion Engine Power Core Light Nuclear Core Propulsion Compact Wheel Treads Light Treads Leg Aluminum Leg Wheel Compact Wheel Utility Huge Storage Unit Device Cooling System Storage Huge Storage Unit Processor Advanced Targeting Computer Protection Hardened Medium Armor Plating Weapon Improved Assault Rifle Energy Gun Medium Laser Energy Cannon Advanced Beam Cannon Ballistic Gun Improved Assault Rifle Launcher Rocket Launcher Build | -11 -10 -10 -9 -9 -8 -7 ------- Run | Yrd Mat Min Mat Min Mat Fac Slots Evolved 6 | . . . 2 . 2 2 Power 1 | . . . . . . 1 Propulsion 1 | . . . 1 . . . Utility 3 | . . . . . 2 1 Weapon 1 | . . . 1 . . . Parts Attached 72 | 8 6 . 5 8 30 15 Power 12 | 1 1 . 1 2 3 4 Engine 6 | 1 1 . 1 2 1 . Core 6 | . . . . . 2 4 Reactor . | . . . . . . . Propulsion 18 | 2 1 . 1 3 10 1 Treads 4 | . . . . . 3 1 Leg 5 | . . . . . 5 . Wheel 9 | 2 1 . 1 3 2 . Hover . | . . . . . . . Flight . | . . . . . . . Utility 17 | 3 1 . 1 . 7 5 Device 6 | 2 . . 1 . 1 2 Storage 2 | 1 1 . . . . . Processor 3 | . . . . . 3 . Hackware . | . . . . . . . Protection 6 | . . . . . 3 3 Artifact . | . . . . . . . Weapon 25 | 2 3 . 2 3 10 5 Energy Gun 6 | 2 . . . . 3 1 Energy Cannon 1 | . . . 1 . . . Ballistic Gun 15 | . 2 . 1 2 7 3 Ballistic Cannon . | . . . . . . . Launcher 3 | . 1 . . 1 . 1 Special Weapon . | . . . . . . . Impact Weapon . | . . . . . . . Slashing Weapon . | . . . . . . . Piercing Weapon . | . . . . . . . Special Melee Weapon . | . . . . . . . Unidentified Prototypes 3 | . . . 1 . 2 . Parts Lost 46 | . . . . 3 16 27 Power 7 | . . . . . 2 5 Propulsion 15 | . . . . 3 6 6 Utility 11 | . . . . . 3 8 Weapon 13 | . . . . . 5 8 Highest Loss Streak 16 | . . . . 2 12 16 To Critical Strikes 3 | . . . . . 1 2 Average Backups 20 | 2 9 13 15 24 21 23 Power 4 | 1 2 2 2 5 5 3 Propulsion 3 | . 2 3 2 2 1 5 Utility 6 | . 2 3 4 6 6 8 Weapon 6 | . 2 5 7 10 8 5 Tool/Special . | . . . . . . . Unused Backups 17 | . . . . 2 6 9 Power 5 | . . . . . 3 2 Propulsion 1 | . . . . . . 1 Utility 4 | . . . . . . 4 Weapon 7 | . . . . 2 3 2 Tool/Special . | . . . . . . . Average Slot Usage (%) 94 | . 100 100 99 99 86 95 Engine 5 | . 14 14 11 11 3 . Core 6 | . . . . . 4 13 Treads 7 | . . . . . . 20 Leg 2 | . . . . . 8 1 Wheel 15 | . 28 28 33 32 10 . Device 7 | . 14 14 11 11 6 2 Storage 9 | . 14 14 11 11 9 7 Processor 8 | . . . . . 11 14 Protection 5 | . . . . . 4 11 Energy Gun 3 | . 21 . . . 9 . Energy Cannon 4 | . . . 9 11 3 . Ballistic Gun 18 | . 6 28 20 21 11 21 Launcher 1 | . . . 2 . 1 . Peak Build Rating 39 | 9 8 8 15 21 31 39 Average Rating 23 | 5 7 8 12 16 23 35 On Entrance 12 | . 7 8 8 15 21 29 Avg Prop Armor Cover (%) . | . . . . . . . Naked Turns . | . . . . . . . Heaviest Build 118 | 13 89 87 93 101 103 118 Greatest Support 60 | 26 32 32 48 48 60 60 Greatest Overweight (x) 31 | 1 3 2 1 3 31 5 Average Overweight (x) 1 | . 1 2 1 1 3 1 Largest Inventory Capacity 25 | 8 25 25 25 25 25 25 Average Capacity 24 | 7 21 25 25 25 25 25 Most Carried 25 | 5 13 13 23 25 25 25 Average Carried 20 | 2 9 13 15 24 21 23 Final Capacity 25 | 8 25 25 25 25 25 25 Final Carried 25 | 5 13 13 23 25 22 15 Class Distribution -------------------- 59% | Scavenger-Gunner 25% | Gunner 15% | Mutant Dominant Class ---------------- Mutant | -10/Materials Mutant | -10/Mines Gunner | -9/Materials Scavenger-Gunner | -9/Mines Scavenger-Gunner | -8/Materials Scavenger-Gunner | -7/Factory Resources | -11 -10 -10 -9 -9 -8 -7 ----------- Run | Yrd Mat Min Mat Min Mat Fac Matter Collected 1624 | 280 35 . 176 176 540 417 Remotely . | . . . . . . . Salvage Created 2229 | 152 169 . 192 172 991 553 Parts 152 | 5 9 . 26 21 52 39 Haulers Intercepted 1 | . 1 . . . . . Recyclers Shooed 3 | . . . 2 . . 1 Parts Field Recycled . | . . . . . . . Retrieved Matter . | . . . . . . . Parts Self-Destructed . | . . . . . . . Prevented . | . . . . . . . Parts Restored . | . . . . . . . Kills | -11 -10 -10 -9 -9 -8 -7 ------- Run | Yrd Mat Min Mat Min Mat Fac Combat Hostiles Destroyed 63 | . 3 . 9 7 24 20 Guns 28 | . . . 1 3 9 15 Cannons 14 | . . . 5 1 8 . AOE 20 | . 3 . 3 3 6 5 Classes Destroyed 16 | 2 2 . 2 3 5 2 Worker 3 | . . . . . 1 2 Builder 4 | . . . . 1 3 . Tunneler 7 | 2 . . . 4 . 1 Hauler 1 | . 1 . . . . . Recycler 2 | 1 1 . . . . . Mechanic 1 | . . . . . 1 . Watcher 2 | . . . 1 . 1 . Swarmer 34 | . 3 . 7 5 6 13 Grunt 9 | . . . . 1 8 . Brawler 1 | . . . . . 1 . Duelist 2 | . . . . . 2 . Protector 1 | . . . . . . 1 Sentry 9 | . . . 2 . 6 1 Hunter 3 | . . . . . 1 2 Programmer 3 | . . . . . . 3 Assembled 1 | . . . . 1 . . Best Kill Streak 10 | 3 3 . 5 6 10 7 Combat Bots Only 6 | . 3 . 4 3 6 6 Max Kills in Single Turn 4 | 1 3 . 4 4 4 2 Gunslinging . | . . . . . . . Exploded 3 | . 3 . 3 3 2 2 Melee . | . . . . . . . Uniques/NPCs Destroyed . | . . . . . . . Combat | -11 -10 -10 -9 -9 -8 -7 -------- Run | Yrd Mat Min Mat Min Mat Fac Hostile Shots Fired 594 | . 9 . 33 7 205 340 Missed 172 | . 2 . 11 2 65 92 Hits 422 | . 7 . 22 5 140 248 Melee 3 | . . . . 2 1 . Projectile 419 | . 7 . 22 3 139 248 Critical Strikes 14 | . . . 1 . 6 7 Part Disruptions 1 | . . . . . . 1 Damage Taken 6005 | . 59 . 249 104 1856 3737 Core 1254 | . . . 36 18 498 702 Absorbed by Shields . | . . . . . . . Ignored by Resistances 6 | . . . . . . 6 Core Remaining (%) 73 | 100 . 100 . 86 9 . Volleys Fired 157 | 13 6 . 17 15 55 51 Largest 3 | 2 2 . 3 3 3 3 Hottest 180 | 100 100 . 118 124 180 136 Shots Fired 399 | 26 12 . 48 41 147 125 Gun 308 | 26 11 . 28 23 100 120 Cannon 68 | . . . 17 15 36 . Launcher 23 | . 1 . 3 3 11 5 Special . | . . . . . . . Kinetic 214 | . 3 . 28 23 46 114 Thermal 162 | 26 8 . 17 15 90 6 Explosive 23 | . 1 . 3 3 11 5 Electromagnetic . | . . . . . . . Robot Hit Streak 19 | 5 6 . 6 4 16 19 Robot Miss Streak 4 | 4 3 . 3 3 3 4 Penetration Max 1 | . . . . . 1 . Secondary Targets 3 | . . . . . . 3 Max Gunslinging Chain 1 | . . . . . . 1 Shots Hit Robots 251 | 17 7 . 23 13 95 96 Core Hits 145 | 4 8 . 12 13 55 53 Critical Kills . | . . . . . . . Critical Parts Destroyed . | . . . . . . . Critical Strikes 6 | 1 . . . . 5 . Burn 6 | 1 . . . . 5 . Melee Attacks . | . . . . . . . Impact . | . . . . . . . Slashing . | . . . . . . . Piercing . | . . . . . . . Sneak Attacks . | . . . . . . . Combat Hostiles . | . . . . . . . Follow-up Attacks . | . . . . . . . Damage Inflicted 6440 | 209 181 . 536 457 2247 2810 Guns 3327 | 209 70 . 100 95 1131 1722 Cannons 902 | . . . 246 167 489 . Explosions 2211 | . 111 . 190 195 627 1088 Melee . | . . . . . . . Ramming . | . . . . . . . Kinetic 2316 | . 19 . 100 95 580 1522 Thermal 1913 | 209 51 . 246 167 1040 200 Explosive 2211 | . 111 . 190 195 627 1088 Electromagnetic . | . . . . . . . Impact . | . . . . . . . Slashing . | . . . . . . . Piercing . | . . . . . . . Highest Corruption 4 | . . . . 2 1 4 Average Corruption 1 | . . . . 2 1 1 Corruption Purged . | . . . . . . . Corruption Blocked . | . . . . . . . Effects 15 | . . . . 2 5 8 Message Errors 5 | . . . . 1 2 2 Matter Fused 2 | . . . . . . 2 Heat Flow Errors 1 | . . . . . . 1 Data Loss (minor) 6 | . . . . 1 2 3 Misfires 1 | . . . . . 1 . Overload Shots . | . . . . . . . Overflow Damage 78 | . . . 11 16 8 43 Projectiles 12 | . . . 11 . 1 . Explosions 66 | . . . . 16 7 43 Melee . | . . . . . . . Knockbacks . | . . . . . . . Impact . | . . . . . . . Kinetic . | . . . . . . . Secondary . | . . . . . . . Self-Inflicted Damage 178 | . . . 12 32 30 104 Shots 6 | . . . 1 1 1 3 Rammed . | . . . . . . . Targets Rammed . | . . . . . . . Kicked . | . . . . . . . Crushed . | . . . . . . . Highest Temperature 350 | 312 137 . 117 . 350 139 Average Temperature 98 | 182 64 . 55 . 137 43 Received Heat Transfer 825 | . . . 27 . 720 78 Effects 1 | 1 . . . . . . Energy Bleed 1 | 1 . . . . . . Siege Activations . | . . . . . . . Martial Activations . | . . . . . . . Shielding Activations . | . . . . . . . Robots Disrupted . | . . . . . . . Combat Hostiles . | . . . . . . . Robots Corrupted . | . . . . . . . Combat Hostiles . | . . . . . . . Parts Fried . | . . . . . . . Impact Corruptions . | . . . . . . . Robots Melted 1 | . . . . . 1 . Combat Hostiles 1 | . . . . . 1 . Parts Melted 10 | 3 . . . . 6 1 Heat Transferred 4616 | 703 148 . 444 296 2738 287 Parts Sabotaged . | . . . . . . . Parts Stolen . | . . . . . . . Parts Stripped . | . . . . . . . Power Chain Reactions . | . . . . . . . Alert | -11 -10 -10 -9 -9 -8 -7 ------- Run | Yrd Mat Min Mat Min Mat Fac Maximum Alert Level 1 | . . . . . 1 1 Low Security (%) 82 | 100 100 100 100 100 34 96 Level 1 17 | . . . . . 65 3 Level 2 . | . . . . . . . Level 3 . | . . . . . . . Level 4 . | . . . . . . . Level 5 . | . . . . . . . High Security . | . . . . . . . Max Security . | . . . . . . . Peak Influence 321 | 5 96 29 145 79 321 204 Initial 100 | . . 29 3 44 13 100 Average 80 | . 21 18 53 21 207 47 Influence Increases 1826 | 15 116 . 255 205 716 519 Destroy 0b10 Robot/C 1220 | . 60 . 180 120 480 380 Destroy 0b10 Robot/NC 105 | 15 10 . 5 25 30 20 Destroy Leader 286 | . 12 . 42 20 132 80 Successful Hack 13 | . 8 . . . . 5 Disable Machine 75 | . . . 15 15 30 15 Destroy Structure 112 | . 11 . 13 25 44 19 Lose Combat Pursuer 15 | . 15 . . . . . Influence Decreases 1734 | 15 40 67 149 286 530 647 Entered New Map 265 | . . 47 6 71 21 120 Time Decay 1009 | 15 40 20 143 185 349 257 Lost Part 460 | . . . . 30 160 270 Squads Dispatched 11 | . 1 . . . 5 5 Investigation 1 | . . . . . 1 . Extermination 2 | . . . . . . 2 Reinforcement 2 | . 1 . . . 1 . Assault . | . . . . . . . Garrison 6 | . . . . . 3 3 Intercept . | . . . . . . . Searches Triggered . | . . . . . . . Construction Impeded 1 | . . . . . 1 . Haulers Reinforced . | . . . . . . . Active Scanning Responses . | . . . . . . . Cargo Convoy Interrupts 1 | . . . . . . 1 Stealth | -11 -10 -10 -9 -9 -8 -7 --------- Run | Yrd Mat Min Mat Min Mat Fac Distress Signals 5 | . . . 2 . 2 1 Communications Jammed . | . . . . . . . Distress Signals . | . . . . . . . Times Spotted 91 | . 7 . 12 6 30 36 Peak Tracking Total 10 | . 4 . 5 3 9 10 Tactical Retreats 1 | . 1 . . . . . Traps | -11 -10 -10 -9 -9 -8 -7 ------- Run | Yrd Mat Min Mat Min Mat Fac Traps Triggered 1 | . . . . . . 1 Indirectly . | . . . . . . . Trap Hack Attempts . | . . . . . . . Triggered . | . . . . . . . Disarmed 6 | . . . 6 . . . Reprogrammed . | . . . . . . . Reused . | . . . . . . . Traps Extracted . | . . . . . . . Installed . | . . . . . . . Triggered . | . . . . . . . Machines | -11 -10 -10 -9 -9 -8 -7 ---------- Run | Yrd Mat Min Mat Min Mat Fac Machines Disabled 5 | . . . 1 1 2 1 Max in Single Turn 1 | . . . 1 1 1 1 Machines Repaired . | . . . . . . . Machines Dismantled . | . . . . . . . Machines Sabotaged . | . . . . . . . Overloaded Fab Kills . | . . . . . . . Hacking | -11 -10 -10 -9 -9 -8 -7 --------- Run | Yrd Mat Min Mat Min Mat Fac Machines Accessed 11 | . 3 . 2 . 2 4 Terminals 8 | . 3 . 2 . 1 2 Fabricators 1 | . . . . . . 1 Repair Stations . | . . . . . . . Recycling Units 2 | . . . . . 1 1 Scanalyzers . | . . . . . . . Garrison Access . | . . . . . . . Total Hacks 16 | . 4 . 2 . 5 5 Successful 7 | . 2 . 1 . 2 2 Failed 9 | . 2 . 1 . 3 3 Catastrophic 2 | . . . 1 . . 1 Database Lockouts . | . . . . . . . Manual . | . . . . . . . Terminals 11 | . 4 . 2 . 3 2 Fabricators 2 | . . . . . . 2 Repair Stations . | . . . . . . . Recycling Units 3 | . . . . . 2 1 Scanalyzers . | . . . . . . . Garrison Access . | . . . . . . . Terminal Hacks 5 | . 2 . 1 . 1 1 Record 1 | . . . . . 1 . Emergency Access Points 1 | . 1 . . . . . Disarm Traps 1 | . . . 1 . . . Recall Reinforcements 1 | . 1 . . . . . Hauler Manifests 1 | . . . . . . 1 Fabricator Hacks . | . . . . . . . Repair Station Hacks . | . . . . . . . Recycling Unit Hacks 2 | . . . . . 1 1 Retrieve Matter 1 | . . . . . . 1 Retrieve Components 1 | . . . . . 1 . Scanalyzer . | . . . . . . . Garrison Access Hacks . | . . . . . . . Unauthorized Hacks . | . . . . . . . Terminals . | . . . . . . . Fabricators . | . . . . . . . Repair Stations . | . . . . . . . Recycling Units . | . . . . . . . Scanalyzers . | . . . . . . . Garrison Access . | . . . . . . . Data Cores Recovered . | . . . . . . . Used . | . . . . . . . Hacking Detections 7 | . 2 . 2 . 1 2 Full Trace Events 1 | . . . . . 1 . Feedback Events 1 | . . . . . 1 . Corruption 1 | . . . . . 1 . Feedback Blocked . | . . . . . . . Robot Schematics Acquired . | . . . . . . . Robots Built . | . . . . . . . Authchips . | . . . . . . . Time . | . . . . . . . Total Robot Build Rating . | . . . . . . . Part Schematics Acquired . | . . . . . . . Parts Built . | . . . . . . . Authchips . | . . . . . . . Time . | . . . . . . . Total Part Build Rating . | . . . . . . . Part Studies Acquired . | . . . . . . . Parts Repaired . | . . . . . . . Time . | . . . . . . . Parts Recycled . | . . . . . . . Recycled Matter . | . . . . . . . Retrieved Matter . | . . . . . . . Retrieved Components 2 | . . . . . 2 . Parts Scanalyzed . | . . . . . . . Part Schematics Acquired . | . . . . . . . Parts Damaged . | . . . . . . . Bothacking | -11 -10 -10 -9 -9 -8 -7 ------------ Run | Yrd Mat Min Mat Min Mat Fac Used RIF Installer . | . . . . . . . Robots Hacked . | . . . . . . . Non-combat . | . . . . . . . Combat . | . . . . . . . Robot Hacks Applied . | . . . . . . . Relay Couplers Released . | . . . . . . . Fabnet Peak Effective % . | . . . . . . . Robots Rewired . | . . . . . . . Allies Hacked . | . . . . . . . Hacks Repelled . | . . . . . . . Allies | -11 -10 -10 -9 -9 -8 -7 -------- Run | Yrd Mat Min Mat Min Mat Fac Total Allies . | . . . . . . . Largest Group . | . . . . . . . Highest-Rated Group . | . . . . . . . Highest-Rated Ally . | . . . . . . . Total Orders . | . . . . . . . Ally Attacks . | . . . . . . . Total Damage . | . . . . . . . Kills . | . . . . . . . Allies Corrupted . | . . . . . . . Allies Melted . | . . . . . . . Intel | -11 -10 -10 -9 -9 -8 -7 ------- Run | Yrd Mat Min Mat Min Mat Fac Active Infowar (turns) 492 | 23 144 59 266 . . . Terrain 5 | 5 . . . . . . Seismic 487 | 18 144 59 266 . . . Robot Analysis Total . | . . . . . . . Derelict Logs Recovered 2 | . . . . 2 . . Drone Launches . | . . . . . . . Drone Recoveries . | . . . . . . . Exploration | -11 -10 -10 -9 -9 -8 -7 ------------- Run | Yrd Mat Min Mat Min Mat Fac Turns Passed 3184 | 113 144 59 385 586 810 1087 Spaces Moved 1501 | 70 90 46 270 418 251 356 Core 32 | 24 . . . . 8 . Treads 360 | . . . . . 15 345 Legs 81 | . . . . . 70 11 Wheels 1028 | 46 90 46 270 418 158 . Hover . | . . . . . . . Flight . | . . . . . . . Fastest Speed 50 | 50 90 130 115 115 116 240 Average Speed 163 | 79 120 130 115 115 220 248 Slowest Speed 1600 | 100 135 130 115 135 1600 570 Overloaded Moves . | . . . . . . . Propulsion Burnouts . | . . . . . . . Robots Hopped . | . . . . . . . Potential Cave-ins . | . . . . . . . Cave-ins Triggered . | . . . . . . . Exploration Rate (%) 23 | 5 16 14 22 76 20 10 Regions Visited 6 Branch Regions 2 Pre-discovered Areas . | . . . . . . . Known Exits Taken 1 | . . . . 1 . . Unknown Exits Taken 5 | 1 1 1 1 . 1 . Scrap Searched 1 | . . . . 1 . . Spaces Dug . | . . . . . . . Terrain Destroyed 130 | . 9 . 14 25 61 21 Melee . | . . . . . . . Projectile . | . . . . . . . AOE 130 | . 9 . 14 25 61 21 Terrain Rammed . | . . . . . . . Walls Destroyed . | . . . . . . . Machines Disabled . | . . . . . . . Actions | -11 -10 -10 -9 -9 -8 -7 --------- Run | Yrd Mat Min Mat Min Mat Fac Total 1900 | 99 111 45 309 492 394 450 Wait 42 | . . . 3 30 9 . Move 1495 | 69 89 45 269 417 250 356 Hop . | . . . . . . . Pick Up 89 | 9 9 . 13 13 30 15 Fast Attach 3 | 3 . . . . . . Attach 49 | 4 . . 2 3 21 19 Detach . | . . . . . . . Swap 38 | 1 6 . 4 6 15 6 Drop 27 | . 1 . 1 8 14 3 Fire 157 | 13 6 . 17 15 55 51 Melee . | . . . . . . . Ram . | . . . . . . . Kick . | . . . . . . . Crush . | . . . . . . . Escape Stasis . | . . . . . . . Rewire . | . . . . . . . Trap . | . . . . . . . Miscellaneous . | . . . . . . . Route ------- -11/Scrapyard -10/Materials -10/Mines -9/Materials -9/Mines (discovered 2 exits: *Mat x2) -8/Materials -7/Factory History --------- Turn | Location | Event 6 | -11/Scrapyard | Discovered new exit (range 15) 114 | -11/Scrapyard | Entered Materials 241 | -10/Materials | Discovered new exit (range 7) 258 | -10/Materials | Entered Mines 303 | -10/Mines | Discovered new exit (range 11) 317 | -10/Mines | Build established: Mutant 317 | -10/Mines | Entered Materials 317 | -9/Materials | Evolved 2 slots: Propulsion x1, Weapon x1 659 | -9/Materials | Build established: Gunner 664 | -9/Materials | Discovered new exit (range 15) 702 | -9/Materials | Entered Mines 789 | -9/Mines | Learned Materials trap positions 796 | -9/Mines | Received a Rocket Launcher from a helpful Derelict 1018 | -9/Mines | Excavation squad dispatched 1018 | -9/Mines | A large section of the Mines collapsed 1188 | -9/Mines | Joined a pair of Derelicts in attacking an 0b10 outpost 1240 | -9/Mines | Build established: Scavenger-Gunner 1254 | -9/Mines | Discovered new exit (range 10) 1275 | -9/Mines | Identified exit to Materials 1288 | -9/Mines | Entered Materials 1288 | -8/Materials | Evolved 2 slots: Utility x2 1289 | -8/Materials | Loaded intel: 10 trap records 1415 | -8/Materials | Garrison activated, responded to threat 1631 | -8/Materials | Core integrity fell below 50% 1658 | -8/Materials | Lost 12 parts (1p5n2u4w) 1782 | -8/Materials | Core integrity fell below 20% 1822 | -8/Materials | Lost 3 parts (1p1u1w) 2091 | -8/Materials | Discovered new exit (range 4) 2098 | -8/Materials | Entered Factory 2098 | -7/Factory | Evolved 2 slots: Power x1, Utility x1 2901 | -7/Factory | Garrison activated, responded to threat 2936 | -7/Factory | Lost 4 parts (2p1u1w) 3060 | -7/Factory | Lost 6 parts (1p2n1u2w) 3141 | -7/Factory | Cargo convoy interrupted 3167 | -7/Factory | Core integrity fell below 50% 3173 | -7/Factory | Core integrity fell below 20% 3185 | -7/Factory | Destroyed by X-57 Shotgunner with Shotgun Last Messages --------------- 03172_ Imp. Targeting Computer destroyed. [Achievement: Hydra] 03174_ K-01 Serf cleans the Neutrino Reactor. 03175_ Penetrated by Slug. 03176_ U-05 Engineer builds a Wall. 03178_ U-05 Engineer lays Concrete. 03178_ Destroyed Shock Rifle. 03179_ U-05 Engineer lays Concrete. 03180_ U-05 Engineer builds a Wall. 03180_ U-05 Engineer lays Concrete. 03181_ Imp. Heat Sink destroyed. 03181_ Destroyed Gravmag System. 03181_ Destroyed Shock Rifle. 03181_ U-05 Engineer lays Concrete. 03181_ Penetrated by Slug. 03183_ R-06 Scavenger collects Com. Battery. 03183_ U-05 Engineer lays Concrete. 03184_ Slug penetrates M-28 Smith. 03184_ Adv. Targeting Computer destroyed. 03184_ U-05 Engineer lays Concrete. Map ----- +----------------------------------------------------+ | ?????????????????????????????????????????????????? | | ?????????????????????????????????????????????????? | | ?????????????????????????????????????????????????? | | ?????????????????????????????????????????????????? | | ?????????????????????????????????????????????????? | | ?????????????????????????????????????????????????? | | ?????????????????????????????????????????????????? | | ?????????????????????????????????????????????????? | | ?????????????????????????????????????????????????? | | ?????????????????????????????????????????????????? | | ?????????????????????????????????????????????????? | | ???????????????????????????????????###+#####?????? | | ???????????????????????####??###???# ?????? | | ??????????????????????? ??# ?????? | | ?????????????????????? """ """ """ # ????? ? | | ?????????????????????# """ """ """ + """"" """"" | | ?????????????????????# """ """ """ # """"" """"" | | ???????????######????# # [ """ """ | | ?????????? ???# ! ?# | | ?????????? ################# """"" """"" | | ????????? u u = [ %= % % """"" """"" | | ?????????? r %= p% * """ """ | | ????????????? "" xhmh* ! %[ = | | ????????????? "T %%[ ### ##### = | | ????????????? "" [ = ###?#####+######+#### | | ?????????? @ #????# = # | | ????????? """ " ""#????# [ = [ # | | ???????????# ? """ """ ""#????# """"" """"" + | | ????????????????""" ""% G#????# """"" """"" # | | ???????????????? ""#????# "!" =""" # | | ?????????????????"" ""#????# = # | | ??????????????????" ###????# """"" """"" # | | ?????????????????"" [[ #??????# """"" """"" # | | ???????????????? [! #??????# """ """ # | | ????????????????""" [ #??????# # | | ????????????????""" #??????################# | | ?????????????????"" #??????????????????????# | | ?????????????????? ???????????????????????# | | ?????????????????? ???????????????????##### | | ????????????????????? ???????????????????# | | ???????????????????????###???????????????????# | | ?????????????????????????????????????????????# | | ?????????????????????????????????????????????# """ | | ?????????????????????????????????????????????# """ | | ?????????????????????????????????????????????# """ | | ?????????????????????????????????????????????# """ | | ?????????????????????????????????????????????# """ | | ?????????????????????????????????????????????# """ | | ?????????????????????????????????????????????# | | ?????????????????????????????????????????????# | +----------------------------------------------------+ Best States ------------- Heat Dissipation 63 Energy Generation 24 Energy Capacity 290 Matter Stores 300 Matter Capacity 300 Sight Range 16 Terrain Scan Density 10 Armor Coverage 450 Resistance: EM 15 Evasion (%) 50 Targeting Accuracy 14 Recoil Reduction 3 Item Schematics ----------------- None Robot Schematics ------------------ None Fabricated ------------ Nothing Repaired ---------- Nothing Studied --------- None Alien Tech Used ----------------- None Achievements -------------- Deductive Reasoning Hydra Jackpot Challenges ------------ None Game ------ Seed GravitonDeflectorRailcannon Manual? 0 Play Time 00:29:20 Cumulative 38.3 hours Start 2026.02.24 @ 21:08:54 End 2026.02.24 @ 21:37:57 Sessions 1 Manual Loads 0 Difficulty Rogue Special Mode None Game No. 36 Rogue 36 Adventurer 0 Explorer 0 Win Type - Total 0 Types 0/0/0/0/0/0/0/0/0/0 Lore% 20 Gallery% 37 Achievement% 20 Wizard Run 0 Options --------- Layout 1 ASCII 0 Keyboard 0 Movement Mouse Keybinds 0 Fullscreen 1 Font 24/Smallcaps Map View 50x35 Zoom Use 0% Tactical HUD 1 Map Filters NONE Filters NONE Steam 1 RUN: bd20e7ff-d62e-43a8-b1db-c746e845ad4f